Cogmind - Beta 11 X10 @@@ ROGUE MODE // 2022.02.19 @ 22:09:21 Player: maxwell Result: Self-destructed Performance ------------- Evolutions (6) 3000 Regions Visited (23) 4600 Robots Destroyed (359) 1795 Value Destroyed (15004) 15004 Prototype IDs (38) 760 Alien Tech Used (0) 0 Bonus (5731) 5731 TOTAL SCORE: 30890 Bonus ------- High Alert Combat Kills 1427 Follower Combat Kills 1052 Network Hubs Disabled 600 Met Imprinter 300 Met Warlord at Base 500 MAIN.C Attacked Warlord 500 Warlord Defense Kill 2238 A7 Reached Mainframe 300 Friendly Fire -1186 Cogmind --------- Core Integrity 587/1150 Matter 241/300 Energy 600/600 System Corruption 1% Temperature Cool (19) Movement Core (2000) Ox39 Location -4/Factory Parts ------- > --- POWER (2) -------- Cooled Fission Core Cooled Fission Core > --- PROPULSION (4) --- (None) > --- UTILITY (10) ----- Huge Storage Unit Enhanced Optical Array Improved Target Analyzer Improved Target Analyzer > --- WEAPON (3) ------- Coil Gun KE Penetrator > --- INVENTORY (25) --- Armored Huge Wheel Matter Compressor (250) Experimental Targeting Computer Improved Kinecellerator Improved Weapon Cycler Makeshift Transmission Jammer Makeshift Ablative Armor Experimental EM Disruption Field System Purifier Peak State ------------ > --- POWER ------------ Vortex Chain Reactor > --- PROPULSION ------- Armored Medium Treads Armored Medium Treads Centrium Heavy Treads > --- UTILITY ---------- Huge Storage Unit Triangulator Enhanced Optical Array Advanced Targeting Computer Experimental Targeting Computer Improved Target Analyzer Improved Kinecellerator Improved Weapon Cycler Experimental EM Disruption Field Improved Shield Generator > --- WEAPON ----------- EMDS Enhanced Autogun > --- INVENTORY -------- Cooled Fission Core Cooled Fission Core Armored Huge Wheel Matter Compressor Experimental Targeting Computer Improved Kinecellerator Improved Weapon Cycler Makeshift Transmission Jammer Makeshift Ablative Armor Makeshift Ablative Armor System Purifier Long-range Tractor Beam Dispersion Rifle EMDS KE Penetrator Hypervelocity Coil Gun Hypervelocity Coil Gun Mini Smartbomb Launcher Molecular Deconstructor [Rating: 138] Favorites ----------- Power Cooled Fission Core Engine Improved Deuterium Engine Power Core Cooled Fission Core Reactor Antimatter Reactor Propulsion Armored Medium Treads Treads Armored Medium Treads Wheel Armored Huge Wheel Utility Huge Storage Unit Device Weapon Cycler Storage Huge Storage Unit Processor Improved Targeting Computer Hackware Hacking Suite Protection Hardened Heavy Armor Plating Weapon Enhanced Autogun Energy Gun Medium Laser Energy Cannon EM Pulse Cannon Ballistic Gun Enhanced Autogun Ballistic Cannon Flak Cannon Launcher Guided Missile Launcher Special Weapon Remote Datajack Impact Weapon Hammer Slashing Weapon Chainsword Build | -11 -10 -10 -10 -9 -8 -7 -7 -7 -7 -7 -7 -6 -6 -6 -6 -6 -6 -5 -5 -5 -5 -4 -4 ------- Run | Scr Mat Min Exi Min Mat Fac Was Fac Low Low Zio Pro Fac Ext Cet Arc Hub Fac Upp Upp War Pro Fac Slots Evolved 12 | . . . . . 4 2 . . . . . . 2 . . . . 2 . . . . 2 Power 1 | . . . . . . . . . . . . . 1 . . . . . . . . . . Propulsion 2 | . . . . . 2 . . . . . . . . . . . . . . . . . . Utility 8 | . . . . . 2 1 . . . . . . 1 . . . . 2 . . . . 2 Weapon 1 | . . . . . . 1 . . . . . . . . . . . . . . . . . Parts Attached 360 | 6 6 4 2 2 37 28 10 16 2 10 10 6 41 13 7 6 52 53 1 5 6 3 34 Power 28 | 1 . . . 1 1 1 1 . . 1 1 . 4 3 . . 5 6 . . 1 . 2 Engine 11 | 1 . . . 1 . 1 . . . . 1 . 4 2 . . 1 . . . . . . Core 11 | . . . . . 1 . . . . . . . . 1 . . 2 5 . . . . 2 Reactor 6 | . . . . . . . 1 . . 1 . . . . . . 2 1 . . 1 . . Propulsion 46 | 2 2 . . 1 12 10 3 1 . 1 . 1 3 1 1 2 1 5 . . . . . Treads 36 | 2 2 . . 1 12 4 3 . . 1 . 1 2 . 1 2 . 5 . . . . . Leg . | . . . . . . . . . . . . . . . . . . . . . . . . Wheel 10 | . . . . . . 6 . 1 . . . . 1 1 . . 1 . . . . . . Hover . | . . . . . . . . . . . . . . . . . . . . . . . . Flight . | . . . . . . . . . . . . . . . . . . . . . . . . Utility 161 | 1 3 . 2 . 7 5 3 13 1 2 2 1 24 6 2 4 39 27 . 1 3 2 13 Device 118 | . 2 . . . . 1 2 10 1 2 2 1 17 5 . 4 32 25 . 1 2 2 9 Storage 7 | 1 1 . 2 . 1 . . . . . . . 1 . . . 1 . . . . . . Processor 12 | . . . . . 2 1 . 1 . . . . 3 . . . 1 1 . . . . 3 Hackware 1 | . . . . . 1 . . . . . . . . . . . . . . . . . . Protection 23 | . . . . . 3 3 1 2 . . . . 3 1 2 . 5 1 . . 1 . 1 Artifact . | . . . . . . . . . . . . . . . . . . . . . . . . Weapon 125 | 2 1 4 . . 17 12 3 2 1 6 7 4 10 3 4 . 7 15 1 4 2 1 19 Energy Gun 10 | 2 . 3 . . . 3 . . . . . . . . . . . . . . . . 2 Energy Cannon 9 | . . . . . 4 . . . . . . . . . . . . 1 . . . 1 3 Ballistic Gun 70 | . . . . . 7 8 2 1 1 4 4 3 6 2 3 . 6 11 . 2 . . 10 Ballistic Cannon 1 | . . . . . 1 . . . . . . . . . . . . . . . . . . Launcher 22 | . 1 1 . . 3 1 . . . 2 2 . 2 1 . . 1 1 1 2 1 . 3 Special Weapon 9 | . . . . . . . . . . . 1 1 2 . 1 . . 2 . . 1 . 1 Impact Weapon 3 | . . . . . 2 . 1 . . . . . . . . . . . . . . . . Slashing Weapon 1 | . . . . . . . . 1 . . . . . . . . . . . . . . . Piercing Weapon . | . . . . . . . . . . . . . . . . . . . . . . . . Special Melee Weapon . | . . . . . . . . . . . . . . . . . . . . . . . . Unidentified Prototypes 20 | . . . . . 2 . 1 . . . 3 1 . . 2 1 5 3 . . 2 . . Corrupted Parts 1 | . . . . . . . . . . . . . . . . 1 . . . . . . . System Corruption 7 | . . . . . . . . . . . . . . . . 7 . . . . . . . Parts Lost 58 | . . 2 . 3 4 4 . 1 . 1 . 2 4 . . . 6 9 . . . 1 21 Power 10 | . . 1 . . 1 1 . . . 1 . . . . . . 3 2 . . . . 1 Propulsion 10 | . . . . 2 2 2 . . . . . 1 . . . . . 1 . . . . 2 Utility 22 | . . . . . 1 . . 1 . . . 1 4 . . . 1 5 . . . 1 8 Weapon 16 | . . 1 . 1 . 1 . . . . . . . . . . 2 1 . . . . 10 Highest Loss Streak 16 | . . 2 . 2 2 2 . 1 . 1 . 1 3 . . . 1 3 . . . 1 16 To Critical Strikes 1 | . . . . . . . . . . . . . . . . . . . . . . . 1 Average Slot Usage (%) 83 | . 96 90 85 82 93 96 95 84 76 74 69 71 84 91 79 66 75 89 90 88 85 75 79 Engine 4 | . 14 7 . 7 3 3 1 . . . . 7 12 11 13 13 4 . . . . . . Core 2 | . . . . . 5 3 . . . . . . . . . . 1 9 11 11 8 . . Reactor 1 | . . . . . . . 5 7 7 5 . . . . . . 6 . . . 1 5 4 Treads 15 | . 28 28 28 26 31 16 5 7 7 14 15 15 7 13 13 7 6 14 17 17 17 17 13 Wheel 3 | . . . . . . 12 19 9 7 . . . 5 6 6 6 6 . . . . . . Device 13 | . 10 14 14 14 3 . 5 7 7 7 7 8 13 8 2 3 14 30 29 29 27 22 21 Storage 6 | . 14 14 14 14 9 7 7 7 7 7 7 7 6 6 6 6 6 5 5 5 5 5 5 Processor 9 | . . . . . 11 21 16 9 7 7 7 7 14 13 8 1 1 5 11 11 11 11 19 Protection 4 | . . . . . 8 7 7 10 7 7 7 5 3 10 8 6 6 . . . . . . Energy Gun 1 | . 21 21 14 5 . . . . . . . . . . . . . . . . . . 2 Ballistic Gun 13 | . . . . . 6 21 15 21 23 22 18 14 17 16 19 20 19 15 10 6 5 5 7 Launcher 1 | . 6 5 14 14 1 1 . . . . . . 2 1 . . . . 2 4 5 4 . Naked Turns . | . . . . . . . . . . . . . . . . . . . . . . . . Heaviest Build 171 | 14 20 20 44 45 94 107 111 129 129 128 116 116 125 129 157 158 171 146 133 139 139 145 151 Greatest Support 145 | 40 46 46 46 46 92 92 46 70 70 140 140 145 145 60 28 80 80 134 134 134 134 134 134 Greatest Overweight (x) 6 | 2 . . . 1 1 6 4 4 4 4 1 . 4 4 5 5 6 4 . 1 1 1 1 Average Overweight (x) 1 | . . . . . . 3 3 3 3 . . . 3 3 4 2 3 . . . . 1 1 Largest Inventory Capacity 25 | 8 10 10 20 20 25 25 25 25 25 25 25 25 25 25 25 25 25 25 25 25 25 25 25 Average Capacity 23 | 7 9 10 12 20 20 25 25 25 25 25 25 25 25 25 25 25 25 25 25 25 25 25 25 Most Carried 25 | 4 10 10 10 11 25 25 25 25 25 25 25 25 25 25 25 25 25 25 25 25 25 24 24 Average Carried 22 | 2 9 8 8 10 19 24 24 24 24 24 24 22 24 23 24 24 24 24 24 24 24 23 21 Final Capacity 25 | 8 10 10 20 20 25 25 25 25 25 25 25 25 25 25 25 25 25 25 25 25 25 25 25 Final Carried 25 | 4 10 8 9 11 25 25 25 25 25 25 25 21 23 24 25 25 24 25 25 25 25 22 10 Class Distribution -------------------- 29% | Mutant 23% | Scavenger-Mutant 13% | Scavenger-Gunner 13% | Gunner 10% | Scavenger-Tank 7% | Tank Dominant Class ---------------- Mutant | -10/Materials Mutant | -10/Mines Mutant | -10/Exiles Mutant | -9/Mines Mutant | -8/Materials Scavenger-Gunner | -7/Factory Scavenger-Mutant | -7/Waste Tank | -7/Factory Gunner | -7/Lower Caves Gunner | -7/Lower Caves Mutant | -7/Zion Mutant | -6/Proximity Caves Mutant | -6/Factory Tank | -6/Extension Tank | -6/Cetus Scavenger-Tank | -6/Archives Scavenger-Tank | -6/Hub_04(d) Scavenger-Gunner | -5/Factory Scavenger-Mutant | -5/Upper Caves Scavenger-Mutant | -5/Upper Caves Scavenger-Mutant | -5/Warlord Scavenger-Mutant | -4/Proximity Caves Scavenger-Mutant | -4/Factory Resources | -11 -10 -10 -10 -9 -8 -7 -7 -7 -7 -7 -7 -6 -6 -6 -6 -6 -6 -5 -5 -5 -5 -4 -4 ----------- Run | Scr Mat Min Exi Min Mat Fac Was Fac Low Low Zio Pro Fac Ext Cet Arc Hub Fac Upp Upp War Pro Fac Matter Collected 13495 | 186 194 49 . 46 1058 827 261 557 270 169 145 456 1123 675 264 316 2975 1916 81 314 266 146 1201 Remotely 3400 | . . . . . . 198 . . . 57 . . 455 . . . 1038 291 81 228 180 . 872 Salvage Created 15606 | . 528 165 . 11 1992 1001 569 901 135 92 . 317 934 188 100 431 3314 3025 . 142 557 170 1034 Parts 828 | . 38 5 . . 113 58 4 46 3 7 . 20 57 16 4 23 192 149 . 4 22 9 58 Haulers Intercepted 14 | . 2 . . . 6 . . 1 . . . . 2 . . . 2 1 . . . . . Recyclers Shooed 8 | . . . . . . 1 . . . . . . 3 . . . . 4 . . . . . Parts Field Recycled . | . . . . . . . . . . . . . . . . . . . . . . . . Retrieved Matter . | . . . . . . . . . . . . . . . . . . . . . . . . Parts Self-Destructed 126 | . . . . . . . . . 4 5 . 17 . . . . . . 5 . 88 7 . Prevented 21 | . . . . . . . . . . . . 4 . . . . . . 2 2 13 . . Kills | -11 -10 -10 -10 -9 -8 -7 -7 -7 -7 -7 -7 -6 -6 -6 -6 -6 -6 -5 -5 -5 -5 -4 -4 ------- Run | Scr Mat Min Exi Min Mat Fac Was Fac Low Low Zio Pro Fac Ext Cet Arc Hub Fac Upp Upp War Pro Fac Combat Hostiles Destroyed 279 | . 14 7 . 2 36 20 . 16 3 8 . 10 15 2 1 4 50 44 . 3 18 4 22 Melee 1 | . . . . . . . . . . . . . . . . . . 1 . . . . . Guns 190 | . 7 2 . . 17 17 . 16 3 2 . 10 10 2 1 4 50 39 . 1 . 1 8 Cannons 17 | . . . . . 11 . . . . . . . . . . . . 1 . . . 1 4 AOE 65 | . 7 5 . 2 8 3 . . . 6 . . 5 . . . . . . 2 18 2 7 Classes Destroyed 24 | . 4 . . 1 3 5 . 1 1 1 . 1 2 . . . 1 1 . 1 2 . . Worker 14 | . . . . . 6 5 . . . . . . . . . . 3 . . . . . . Builder 11 | . . . . . . 3 . . . . . . . 1 . . 3 4 . . . . . Tunneler 3 | . . . . . . 1 . . . . . . 2 . . . . . . . . . . Hauler 14 | . 2 . . . 6 . . 1 . . . . 2 . . . 2 1 . . . . . Recycler 4 | . . . . . . 1 . 1 . . . . . . . . 1 1 . . . . . Operator 9 | . . . . . . . . 2 . . . . . 1 . 3 1 2 . . . . . Watcher 23 | . 3 . . . 5 3 . . . . . . 4 1 1 . 1 3 . . . . 2 Swarmer 70 | . 6 3 . . 7 10 . 4 . 7 . 7 3 . . . 11 4 . . . . 8 Saboteur 3 | . . . . . . . . . . . . . . . . . . 2 . . 1 . . Grunt 93 | . 8 4 . . 21 6 . 6 2 . . 2 3 1 . . 18 9 . . 11 2 . Brawler 7 | . . . . . 2 1 . . . . . . . . . . 1 2 . . 1 . . Duelist 3 | . . . . . . . . . 1 . . . 1 . . . . 1 . . . . . Protector 2 | . . . . . . . . . . . . . . . . . 1 . . . 1 . . Sentry 25 | . . . . . 6 1 . 2 . . . . 1 1 . 4 6 3 . . . . 1 Specialist 9 | . . . . . . . . . . . . . 2 . . . 2 2 . . 1 . 2 Hunter 21 | . . . . . . 1 . 1 . . . . 1 . 1 . . 8 . 3 1 1 4 Programmer 29 | . . . . . . 1 . 3 . . . . 2 . . . 3 12 . . . 2 6 Heavy 4 | . . . . . . . . . . . . . 1 . . . 2 1 . . . . . Behemoth 2 | . . . . . . . . . . . . 1 1 . . . . . . . . . . Lightning 6 | . . . . . . . . . . . . . . . . . 6 . . . . . . Striker 1 | . . . . . . . . . . . . . . . . . . . . . 1 . . Executioner 3 | . . . . . . . . . . . . . . . . . . . . . 1 . 2 Thief 1 | . . . . . . . . . . 1 . . . . . . . . . . . . . Assembled 2 | . . . . 2 . . . . . . . . . . . . . . . . . . . Butcher 1 | . . . . . . . . . . . . . . . . . . . . . 1 . . Mutant 1 | . . . . . . . . . . . . . . . . . . . . 1 . . . Best Kill Streak 12 | . 4 4 . 1 8 12 . 4 3 4 . 4 9 2 1 3 7 10 . 2 12 2 9 Combat Bots Only 12 | . 3 4 . 1 6 6 . 4 3 4 . 4 5 1 1 2 5 7 . 2 12 2 8 Max Kills in Single Turn 4 | . 3 2 . 1 3 4 . 2 1 2 . 2 2 1 1 1 2 3 . 1 3 1 2 Gunslinging 1 | . . . . . . . . 1 . . . 1 . . . . 1 1 . . . . 1 Exploded 3 | . 3 2 . 1 3 3 . . . 2 . . 2 . . . . . . 1 3 1 2 Melee 1 | . . . . . . . . . . . . . . . . . . 1 . . . . . Uniques/NPCs Destroyed . | . . . . . . . . . . . . . . . . . . . . . . . . Combat | -11 -10 -10 -10 -9 -8 -7 -7 -7 -7 -7 -7 -6 -6 -6 -6 -6 -6 -5 -5 -5 -5 -4 -4 -------- Run | Scr Mat Min Exi Min Mat Fac Was Fac Low Low Zio Pro Fac Ext Cet Arc Hub Fac Upp Upp War Pro Fac Damage Taken 16923 | . 312 423 . 163 1471 884 . 649 45 547 . 1128 1214 437 12 215 2883 2292 . 127 178 275 3668 Core 1522 | . 59 57 . 16 101 138 . 58 . 16 . . 51 34 . 52 182 85 . 18 22 70 563 Absorbed by Shields 1383 | . . . . . . . . 78 . . . . 100 . 12 . . 1042 . . . . 151 Reduced by Siege Mode 413 | . . . . . . . . 23 . 56 . 13 24 . . . 128 83 . . . . 86 Redirected to Shielding 53 | . . . . . . . . 53 . . . . . . . . . . . . . . . Core Remaining (%) 73 | 100 . . . 47 81 . . . . . . 69 . . . . 62 . . . . 80 . Volleys Fired 852 | . 29 21 . 3 108 48 17 48 6 18 5 39 68 25 10 18 144 140 1 15 18 12 59 Largest 3 | . 2 2 . 1 2 3 2 3 3 3 1 3 3 3 3 3 3 3 1 3 1 1 3 Hottest 156 | . 100 100 . 30 126 147 55 83 83 83 33 83 75 75 85 85 95 99 39 93 39 70 156 Shots Fired 2021 | . 52 37 . 3 201 138 34 137 18 41 5 83 171 65 27 54 426 379 1 19 19 12 99 Gun 1808 | . 46 33 . . 133 136 34 137 18 36 2 68 157 60 26 54 426 360 . 10 1 1 70 Cannon 82 | . . . . . 58 . . . . . . . . . . . . 9 . . . 2 13 Launcher 95 | . 6 4 . 3 10 2 . . . 5 . . 11 5 . . . . 1 9 17 9 13 Special 36 | . . . . . . . . . . . 3 15 3 . 1 . . 10 . . 1 . 3 Kinetic 1721 | . . . . . 139 128 34 137 18 36 2 68 157 60 26 54 426 360 . 10 1 1 64 Thermal 111 | . 46 23 . . 28 8 . . . . . . . . . . . . . . . . 6 Explosive 95 | . 6 4 . 3 10 2 . . . 5 . . 11 5 . . . . 1 9 17 9 13 Electromagnetic 58 | . . 10 . . 24 . . . . . . . . . . . . 9 . . . 2 13 Robot Hit Streak 34 | . 10 11 . 2 16 21 14 17 7 16 2 13 18 19 5 9 34 34 . 7 9 12 21 Robot Miss Streak 6 | . 2 2 . 2 4 2 1 3 2 1 2 3 4 6 2 3 6 4 . 1 . . 2 Penetration Max 1 | . . . . . 1 . . 1 . . . . . . . 1 1 1 . . . . 1 Secondary Targets 41 | . . 1 . . 5 5 . 1 . 1 . 4 1 1 . . 11 9 . . . . 2 Max Gunslinging Chain 1 | . . 1 . . 1 1 . 1 . 1 . 1 1 1 . . 1 1 . . . . 1 Shots Hit Robots 1384 | . 38 25 . 1 141 100 30 96 12 32 2 43 97 31 16 38 305 286 . 7 2 3 79 Core Hits 772 | . 30 11 . 4 86 56 4 38 6 12 . 20 64 15 10 20 141 114 . 9 66 18 48 Critical Kills 35 | . . . . . . 1 . 2 . . . . 1 . . 3 18 7 . . . . 3 Critical Parts Destroyed 52 | . . . . . 2 1 . 1 . . . . . 1 . 2 15 21 . 1 . . 8 Critical Strikes 101 | . 3 2 . . 3 3 1 3 . . . . 1 1 . 5 33 30 . 1 . . 15 Burn 5 | . 3 1 . . . 1 . . . . . . . . . . . . . . . . . Destroy 89 | . . . . . 2 2 1 3 . . . . 1 1 . 5 33 29 . 1 . . 11 Corrupt 7 | . . 1 . . 1 . . . . . . . . . . . . 1 . . . . 4 Melee Attacks 17 | . . . . . 4 . 11 2 . . . . . . . . . . . . . . . Impact 17 | . . . . . 4 . 11 2 . . . . . . . . . . . . . . . Slashing . | . . . . . . . . . . . . . . . . . . . . . . . . Piercing . | . . . . . . . . . . . . . . . . . . . . . . . . Sneak Attacks . | . . . . . . . . . . . . . . . . . . . . . . . . Combat Hostiles . | . . . . . . . . . . . . . . . . . . . . . . . . Follow-up Attacks . | . . . . . . . . . . . . . . . . . . . . . . . . Damage Inflicted 42628 | . 977 783 . 110 3919 2513 747 2045 265 1184 . 738 2669 718 267 789 7433 7605 . 923 4002 854 4087 Guns 28109 | . 433 330 . . 1807 1859 747 2045 265 578 . 738 1822 701 267 789 7383 7030 . 113 23 25 1154 Cannons 2339 | . . . . . 1147 . . . . . . . . . . . . 444 . . . 106 642 Explosions 12122 | . 544 453 . 110 965 654 . . . 606 . . 825 . . . 42 120 . 810 3979 723 2291 Melee . | . . . . . . . . . . . . . . . . . . . . . . . . Ramming 58 | . . . . . . . . . . . . . 22 17 . . 8 11 . . . . . Kinetic 27177 | . . . . . 1911 1739 747 2045 265 578 . 738 1822 701 267 789 7383 7030 . 113 23 25 1001 Thermal 1494 | . 433 267 . . 479 120 . . . . . . . . . . 42 . . . . . 153 Explosive 12000 | . 544 399 . 110 965 654 . . . 606 . . 825 . . . . 94 . 810 3979 723 2291 Electromagnetic 1899 | . . 117 . . 564 . . . . . . . . . . . . 470 . . . 106 642 Impact . | . . . . . . . . . . . . . . . . . . . . . . . . Slashing . | . . . . . . . . . . . . . . . . . . . . . . . . Piercing . | . . . . . . . . . . . . . . . . . . . . . . . . Highest Corruption 7 | . . . . . 3 . . 3 . . . . . . . 7 1 6 . . 1 1 1 Average Corruption 2 | . . . . . 2 . . 2 . . . . . . . 3 1 3 . . 1 1 1 Corruption Purged 23 | . . . . . . . . 5 . . . . . . . 7 . 10 . . . 1 . Corruption Blocked 3 | . . . . . . . . 3 . . . . . . . . . . . . . . . Effects 96 | . . . . . 32 . . 6 . . . . . . . 2 2 53 . . 1 . . Message Errors 18 | . . . . . 8 . . 1 . . . . . . . 1 1 7 . . . . . Matter Fused 27 | . . . . . 11 . . 3 . . . . . . . . . 13 . . . . . Heat Flow Errors 10 | . . . . . . . . . . . . . . . . 1 . 9 . . . . . Energy Discharges 11 | . . . . . 6 . . 1 . . . . . . . . . 4 . . . . . Parts Rejected 3 | . . . . . . . . . . . . . . . . . . 3 . . . . . Data Loss (minor) 9 | . . . . . 4 . . . . . . . . . . . . 5 . . . . . Data Loss (major) 2 | . . . . . 1 . . . . . . . . . . . 1 . . . . . . Misfires 9 | . . . . . 1 . . 1 . . . . . . . . . 6 . . 1 . . Alerts 2 | . . . . . 1 . . . . . . . . . . . . 1 . . . . . Weapon Failures 5 | . . . . . . . . . . . . . . . . . . 5 . . . . . Overload Shots . | . . . . . . . . . . . . . . . . . . . . . . . . Overflow Damage 432 | . 11 11 . 19 48 29 . . . 36 . . 7 . . . 30 73 . 5 42 1 120 Projectiles 144 | . . . . . 45 . . . . . . . . . . . . 72 . . . . 27 Explosions 288 | . 11 11 . 19 3 29 . . . 36 . . 7 . . . 30 1 . 5 42 1 93 Melee . | . . . . . . . . . . . . . . . . . . . . . . . . Knockbacks 2 | . . . . . 1 . . . . . . . . 1 . . . . . . . . . Impact 1 | . . . . . . . . . . . . . . 1 . . . . . . . . . Kinetic 1 | . . . . . 1 . . . . . . . . . . . . . . . . . . Secondary . | . . . . . . . . . . . . . . . . . . . . . . . . Self-Inflicted Damage 400 | . 47 . . 30 . 8 . . . 50 . . . 8 . . 121 75 . . . 61 . Shots 10 | . 2 . . 1 . 1 . . . 1 . . . . . . 2 1 . . . 2 . Rammed 7 | . . . . 1 . . . . . . . . 1 1 . . 2 2 . . . . . Targets Rammed 7 | . . . . 1 . . . . . . . . 1 1 . . 2 2 . . . . . Kicked . | . . . . . . . . . . . . . . . . . . . . . . . . Crushed . | . . . . . . . . . . . . . . . . . . . . . . . . Highest Temperature 448 | . 399 102 . . 366 404 . 267 339 364 . 398 258 175 215 448 354 385 12 76 72 96 176 Average Temperature 108 | . 111 41 . . 111 111 . 88 172 168 . 159 94 59 87 211 93 95 12 27 25 33 43 Received Heat Transfer 2891 | . 117 222 . 20 666 216 . 115 27 . . 66 174 150 . 27 672 173 . . 45 39 162 Effects 27 | . . . . . 5 3 . . 1 . . 2 . . . 6 8 2 . . . . . Shutdowns 6 | . . . . . . . . . . . . 2 . . . 4 . . . . . . . Energy Bleed 8 | . . . . . 1 . . . 1 . . . . . . 2 2 2 . . . . . Interference 12 | . . . . . 3 3 . . . . . . . . . . 6 . . . . . . Damage (minor) 1 | . . . . . 1 . . . . . . . . . . . . . . . . . . Siege Activations 65 | . . . . . . . . 11 1 2 . 3 9 . . . 20 14 . . . . 5 Total Turns 936 | . . . . . . . . 203 34 49 . 22 67 . . . 319 167 . . . . 75 Longest Duration 120 | . . . . . . . . 120 34 26 . 10 18 . . . 71 25 . . . . 31 Robots Corrupted 5 | . . . . . 1 . . . . . . . . . . . . 3 . . . . 1 Combat Hostiles 3 | . . . . . . . . . . . . . . . . . . 2 . . . . 1 Parts Fried 26 | . . . . . 7 . . . . . . . . . 2 . 1 8 . . . . 8 Impact Corruptions . | . . . . . . . . . . . . . . . . . . . . . . . . Robots Melted . | . . . . . . . . . . . . . . . . . . . . . . . . Combat Hostiles . | . . . . . . . . . . . . . . . . . . . . . . . . Parts Melted 6 | . 2 2 . . 1 1 . . . . . . . . . . . . . . . . . Heat Transferred 3565 | . 1517 703 . . 814 296 . . . . . . . . . . 50 . . . . . 185 Parts Sabotaged 5 | . . . . . . . . . . . . . . . . . . 2 . . . . 3 Parts Stolen . | . . . . . . . . . . . . . . . . . . . . . . . . Parts Stripped . | . . . . . . . . . . . . . . . . . . . . . . . . Power Chain Reactions 2 | . . 1 . . . . . . . . . . . . . . 1 . . . . . . Missiles Intercepted . | . . . . . . . . . . . . . . . . . . . . . . . . Alert | -11 -10 -10 -10 -9 -8 -7 -7 -7 -7 -7 -7 -6 -6 -6 -6 -6 -6 -5 -5 -5 -5 -4 -4 ------- Run | Scr Mat Min Exi Min Mat Fac Was Fac Low Low Zio Pro Fac Ext Cet Arc Hub Fac Upp Upp War Pro Fac Peak Influence 908 | . 255 211 . 15 559 690 208 217 . . . . 404 313 364 215 828 908 . . . . 450 Initial 383 | . . 61 . . 1 226 208 8 . . . . . 197 100 145 4 383 . . . . 39 Average 256 | . 114 150 . . 189 456 115 91 . . . . 92 129 296 166 364 610 . . . . 110 Maximum Alert Level 3 | . 1 1 . . 2 2 1 1 . . . . 2 1 1 1 3 3 . . . . 2 Low Security (%) 52 | 100 78 63 . 100 67 . 46 97 . . . . 77 73 11 33 40 . . . . . 79 Level 1 19 | . 21 36 . . 11 31 53 2 . . . . 21 26 88 66 11 7 . . . . 16 Level 2 24 | . . . . . 20 68 . . . . . . . . . . 38 77 . . . . 3 Level 3 3 | . . . . . . . . . . . . . . . . . 9 14 . . . . . Level 4 . | . . . . . . . . . . . . . . . . . . . . . . . . Level 5 . | . . . . . . . . . . . . . . . . . . . . . . . . High Security . | . . . . . . . . . . . . . . . . . . . . . . . . Max Security . | . . . . . . . . . . . . . . . . . . . . . . . . Squads Dispatched 55 | . 2 . . . 4 3 . 3 . . . . 8 . . . 14 17 . . . . 4 Investigation 10 | . 2 . . . 3 1 . . . . . . 2 . . . . 1 . . . . 1 Extermination 17 | . . . . . . 1 . 2 . . . . 2 . . . 4 6 . . . . 2 Reinforcement 22 | . . . . . 1 1 . 1 . . . . 4 . . . 7 7 . . . . 1 Assault 3 | . . . . . . . . . . . . . . . . . 1 2 . . . . . Garrison 3 | . . . . . . . . . . . . . . . . . 2 1 . . . . . Intercept . | . . . . . . . . . . . . . . . . . . . . . . . . Construction Impeded 5 | . . . . . . . . . . . . . 1 . . . . 3 . . . . 1 Haulers Reinforced 2 | . . . . . . . . . . . . . . . . . 1 1 . . . . . Active Scanning Responses . | . . . . . . . . . . . . . . . . . . . . . . . . Cargo Convoy Interrupts 2 | . . . . . . . . . . . . . 1 . . . . . . . . . 1 Stealth | -11 -10 -10 -10 -9 -8 -7 -7 -7 -7 -7 -7 -6 -6 -6 -6 -6 -6 -5 -5 -5 -5 -4 -4 --------- Run | Scr Mat Min Exi Min Mat Fac Was Fac Low Low Zio Pro Fac Ext Cet Arc Hub Fac Upp Upp War Pro Fac Distress Signals 17 | . . . . . 5 1 . 1 . . . . 1 . 1 . 3 4 . . . . 1 Communications Jammed 8 | . . . . . . . . . . . . . 2 . . . 3 3 . . . . . Distress Signals 3 | . . . . . . . . . . . . . 2 . . . 1 . . . . . . Times Spotted 409 | . 18 7 . 4 43 25 . 21 3 11 . 12 28 16 7 8 76 64 . 4 20 6 36 Peak Tracking Total 17 | . 4 3 . 2 4 5 . 3 3 3 . 4 4 3 3 1 8 5 . 2 17 3 11 Tactical Retreats 14 | . . . . . . . . . . 3 . 1 3 . . . 5 1 . . 1 . . Traps | -11 -10 -10 -10 -9 -8 -7 -7 -7 -7 -7 -7 -6 -6 -6 -6 -6 -6 -5 -5 -5 -5 -4 -4 ------- Run | Scr Mat Min Exi Min Mat Fac Was Fac Low Low Zio Pro Fac Ext Cet Arc Hub Fac Upp Upp War Pro Fac Traps Triggered 20 | . 1 . . . 2 3 . 3 . . . . 3 3 . . . 5 . . . . . Indirectly . | . . . . . . . . . . . . . . . . . . . . . . . . Trap Hack Attempts . | . . . . . . . . . . . . . . . . . . . . . . . . Triggered . | . . . . . . . . . . . . . . . . . . . . . . . . Disarmed . | . . . . . . . . . . . . . . . . . . . . . . . . Reprogrammed . | . . . . . . . . . . . . . . . . . . . . . . . . Reused . | . . . . . . . . . . . . . . . . . . . . . . . . Traps Extracted . | . . . . . . . . . . . . . . . . . . . . . . . . Installed . | . . . . . . . . . . . . . . . . . . . . . . . . Triggered 14 | . . . . . . . . . . . . 1 2 . . . . . . 1 10 . . Machines | -11 -10 -10 -10 -9 -8 -7 -7 -7 -7 -7 -7 -6 -6 -6 -6 -6 -6 -5 -5 -5 -5 -4 -4 ---------- Run | Scr Mat Min Exi Min Mat Fac Was Fac Low Low Zio Pro Fac Ext Cet Arc Hub Fac Upp Upp War Pro Fac Machines Disabled 36 | . 1 . . . 3 5 . 1 . 1 . . 2 1 2 2 9 8 1 . . . . Max in Single Turn 4 | . 1 . . . 1 4 . 1 . 1 . . 1 1 . 1 4 3 1 . . . . Garrison Access 4 | . . . . . . . . . . . . . 1 . . . 2 1 . . . . . Network Hub 3 | . . . . . . . . . . . . . . . . . 3 . . . . . . Machines Sabotaged . | . . . . . . . . . . . . . . . . . . . . . . . . Garrisons Compromised 1 | . . . . . . . . . . . . . 1 . . . . . . . . . . Overloaded Fab Kills . | . . . . . . . . . . . . . . . . . . . . . . . . Hacking | -11 -10 -10 -10 -9 -8 -7 -7 -7 -7 -7 -7 -6 -6 -6 -6 -6 -6 -5 -5 -5 -5 -4 -4 --------- Run | Scr Mat Min Exi Min Mat Fac Was Fac Low Low Zio Pro Fac Ext Cet Arc Hub Fac Upp Upp War Pro Fac Machines Accessed 56 | . 8 . 1 . 9 5 . 5 . . 1 . 6 1 . . 4 6 1 . 7 . 2 Terminals 34 | . 6 . . . 7 4 . 5 . . . . 2 1 . . 2 4 1 . . . 2 Fabricators 2 | . . . . . . 1 . . . . . . . . . . . 1 . . . . . Repair Stations . | . . . . . . . . . . . . . . . . . . . . . . . . Recycling Units 5 | . 2 . . . 1 . . . . . . . 2 . . . . . . . . . . Scanalyzers 2 | . . . . . 1 . . . . . . . 1 . . . . . . . . . . Garrison Access 4 | . . . . . . . . . . . . . 1 . . . 2 1 . . . . . Total Hacks 160 | . 16 . 1 . 38 14 . 10 . . 3 . 10 5 . . 16 19 2 . 11 . 15 Successful 85 | . 9 . 1 . 23 5 . 3 . . 3 . 5 1 . . 9 9 2 . 11 . 4 Failed 73 | . 6 . . . 14 9 . 7 . . . . 5 4 . . 7 10 . . . . 11 Catastrophic 11 | . . . . . . . . 2 . . . . 2 1 . . . 3 . . . . 3 Database Lockouts 2 | . 1 . . . 1 . . . . . . . . . . . . . . . . . . Manual 107 | . 17 . . . 27 8 . 8 . 1 . . 6 4 1 . 10 16 . . 1 . 8 Terminals 121 | . 13 . . . 32 10 . 10 . . . . 4 5 . . 14 16 2 . . . 15 Fabricators 6 | . . . . . . 4 . . . . . . . . . . . 2 . . . . . Repair Stations . | . . . . . . . . . . . . . . . . . . . . . . . . Recycling Units 6 | . 3 . . . 1 . . . . . . . 2 . . . . . . . . . . Scanalyzers 8 | . . . . . 5 . . . . . . . 3 . . . . . . . . . . Garrison Access 4 | . . . . . . . . . . . . . 1 . . . 2 1 . . . . . Terminal Hacks 46 | . 2 . 1 . 13 3 . 2 . . 3 . . . . . 4 4 2 . 11 . 1 Record 8 | . . . 1 . . . . . . . . . . . . . . . 2 . 5 . . Part Schematic 4 | . . . . . . . . 1 . . 3 . . . . . . . . . . . . Robot Analysis 4 | . 1 . . . 2 1 . . . . . . . . . . . . . . . . . Prototype ID Bank 10 | . 1 . . . 2 1 . . . . . . . . . . 1 . . . 5 . . Open Door 1 | . . . . . . . . . . . . . . . . . . . . . 1 . . Branch Access Points 1 | . . . . . . . . 1 . . . . . . . . . . . . . . . Terminal Index 2 | . . . . . 1 1 . . . . . . . . . . . . . . . . . Alert Level 2 | . . . . . 2 . . . . . . . . . . . . . . . . . . Unreport Threat 6 | . . . . . 1 . . . . . . . . . . . 2 3 . . . . . Locate Traps 2 | . . . . . 1 . . . . . . . . . . . . 1 . . . . . Dispatch Records 1 | . . . . . 1 . . . . . . . . . . . . . . . . . . Transport Status 1 | . . . . . 1 . . . . . . . . . . . . . . . . . . Hauler Manifests 1 | . . . . . 1 . . . . . . . . . . . . . . . . . . Registered Prototypes 1 | . . . . . 1 . . . . . . . . . . . . . . . . . . Zone Layout 2 | . . . . . . . . . . . . . . . . . 1 . . . . . 1 Fabricator Hacks 3 | . . . . . . 1 . . . . . . . . . . . 2 . . . . . Load Schematic 1 | . . . . . . . . . . . . . . . . . . 1 . . . . . Build 2 | . . . . . . 1 . . . . . . . . . . . 1 . . . . . Repair Station Hacks . | . . . . . . . . . . . . . . . . . . . . . . . . Recycling Unit Hacks . | . . . . . . . . . . . . . . . . . . . . . . . . Scanalyzer 6 | . . . . . 4 . . . . . . . 2 . . . . . . . . . . Insert Component 3 | . . . . . 2 . . . . . . . 1 . . . . . . . . . . Analyze 3 | . . . . . 2 . . . . . . . 1 . . . . . . . . . . Garrison Access Hacks 4 | . . . . . . . . . . . . . 1 . . . 2 1 . . . . . Seal Access 4 | . . . . . . . . . . . . . 1 . . . 2 1 . . . . . Unauthorized Hacks 26 | . 7 . . . 6 1 . 1 . . . . 2 1 . . 3 2 . . . . 3 Terminals 21 | . 5 . . . 5 1 . 1 . . . . . 1 . . 3 2 . . . . 3 Track 2 | . 1 . . . . . . . . . . . . . . . 1 . . . . . . Assimilate 2 | . 2 . . . . . . . . . . . . . . . . . . . . . . Botnet 12 | . 1 . . . 4 . . 1 . . . . . 1 . . 1 2 . . . . 2 Disrupt 1 | . . . . . . . . . . . . . . . . . 1 . . . . . . Operators 4 | . 1 . . . 1 1 . . . . . . . . . . . . . . . . 1 Fabricators . | . . . . . . . . . . . . . . . . . . . . . . . . Repair Stations . | . . . . . . . . . . . . . . . . . . . . . . . . Recycling Units 5 | . 2 . . . 1 . . . . . . . 2 . . . . . . . . . . Tunnel 5 | . 2 . . . 1 . . . . . . . 2 . . . . . . . . . . Scanalyzers . | . . . . . . . . . . . . . . . . . . . . . . . . Garrison Access . | . . . . . . . . . . . . . . . . . . . . . . . . Data Cores Recovered 3 | . . . . . . . . 1 . . . . . 1 . . . 1 . . . . . Used . | . . . . . . . . . . . . . . . . . . . . . . . . Hacking Detections 36 | . 5 . . . 7 5 . 5 . . . . 3 1 . . 2 5 1 . . . 2 Full Trace Events 3 | . . . . . 1 . . . . . . . . . . . . 1 . . . . 1 Feedback Events . | . . . . . . . . . . . . . . . . . . . . . . . . Feedback Blocked . | . . . . . . . . . . . . . . . . . . . . . . . . Robot Schematics Acquired 3 | . . . . . . . . . . . 3 . . . . . . . . . . . . Robots Built . | . . . . . . . . . . . . . . . . . . . . . . . . Authchips . | . . . . . . . . . . . . . . . . . . . . . . . . Time . | . . . . . . . . . . . . . . . . . . . . . . . . Total Robot Build Rating . | . . . . . . . . . . . . . . . . . . . . . . . . Part Schematics Acquired 20 | . . . . . . . . 1 . . 18 . 1 . . . . . . . . . . Parts Built 2 | . . . . . . 2 . . . . . . . . . . . . . . . . . Authchips . | . . . . . . . . . . . . . . . . . . . . . . . . Time 148 | . . . . . . 53 . . . . . . . . . . . 95 . . . . . Total Part Build Rating 12 | . . . . . . 12 . . . . . . . . . . . . . . . . . Parts Repaired . | . . . . . . . . . . . . . . . . . . . . . . . . Time . | . . . . . . . . . . . . . . . . . . . . . . . . Parts Recycled . | . . . . . . . . . . . . . . . . . . . . . . . . Recycled Matter . | . . . . . . . . . . . . . . . . . . . . . . . . Retrieved Matter . | . . . . . . . . . . . . . . . . . . . . . . . . Retrieved Components . | . . . . . . . . . . . . . . . . . . . . . . . . Parts Scanalyzed 2 | . . . . . 1 . . . . . . . 1 . . . . . . . . . . Part Schematics Acquired 1 | . . . . . . . . . . . . . 1 . . . . . . . . . . Parts Damaged . | . . . . . . . . . . . . . . . . . . . . . . . . Bothacking | -11 -10 -10 -10 -9 -8 -7 -7 -7 -7 -7 -7 -6 -6 -6 -6 -6 -6 -5 -5 -5 -5 -4 -4 ------------ Run | Scr Mat Min Exi Min Mat Fac Was Fac Low Low Zio Pro Fac Ext Cet Arc Hub Fac Upp Upp War Pro Fac Used RIF Installer . | . . . . . . . . . . . . . . . . . . . . . . . . Robots Hacked 2 | . . . . . . . . . . . 2 . . . . . . . . . . . . Non-combat . | . . . . . . . . . . . . . . . . . . . . . . . . Combat 2 | . . . . . . . . . . . 2 . . . . . . . . . . . . Robot Hacks Applied 2 | . . . . . . . . . . . 2 . . . . . . . . . . . . parse_system 2 | . . . . . . . . . . . 2 . . . . . . . . . . . . Relay Couplers Released 2 | . . . . . . . . . . . . . . . . . 2 . . . . . . Machine Destruction 2 | . . . . . . . . . . . . . . . . . 2 . . . . . . Fabnet Peak Effective % . | . . . . . . . . . . . . . . . . . . . . . . . . Robots Rewired 11 | . . . . . . . . . . . . . . 6 . . . . . . 5 . . Allies Hacked 1 | . . . . . . . . . . . . . . . . . . . . . . 1 . Hacks Repelled . | . . . . . . . . . . . . . . . . . . . . . . . . Allies | -11 -10 -10 -10 -9 -8 -7 -7 -7 -7 -7 -7 -6 -6 -6 -6 -6 -6 -5 -5 -5 -5 -4 -4 -------- Run | Scr Mat Min Exi Min Mat Fac Was Fac Low Low Zio Pro Fac Ext Cet Arc Hub Fac Upp Upp War Pro Fac Total Allies 23 | . 1 . . . . . . . . . . . 3 14 . . . . . . 5 . . Largest Group 6 | . 1 1 1 1 . . . . . . . . 3 6 5 4 . . . . 5 3 1 Highest-Rated Group 307 | . 10 10 9 9 . . . . . . . . 93 307 287 248 . . . . 207 118 43 Highest-Rated Ally 159 | . 10 10 9 9 . . . . . . . . 31 159 159 159 . . . . 43 43 43 Total Orders 14 | . . . . . . . . . . . . . 3 4 . . 5 . . . 2 . . STAY 1 | . . . . . . . . . . . . . . . . . . . . . 1 . . FOLLOW 1 | . . . . . . . . . . . . . . . . . . . . . 1 . . EXPLORE 2 | . . . . . . . . . . . . . 1 1 . . . . . . . . . RETURN 10 | . . . . . . . . . . . . . 2 3 . . 5 . . . . . . Ally Attacks 175 | . . . . . . . . . . . . . 26 64 43 2 . . . . 17 17 6 Total Damage 3702 | . . . . . . . . . . . . . 559 1088 745 . . . . . 596 504 210 Kills 26 | . . . . . . . . . . . . . 1 12 7 . . . . . 3 2 1 Allies Corrupted 2 | . . . . . . . . . . . . . . 1 . . . . . . . 1 . Allies Melted 3 | . . . . . . . . . . . . . 1 . . . . . . . 2 . . Intel | -11 -10 -10 -10 -9 -8 -7 -7 -7 -7 -7 -7 -6 -6 -6 -6 -6 -6 -5 -5 -5 -5 -4 -4 ------- Run | Scr Mat Min Exi Min Mat Fac Was Fac Low Low Zio Pro Fac Ext Cet Arc Hub Fac Upp Upp War Pro Fac Robot Analysis Total 4 | . 1 . . . 2 1 . . . . . . . . . . . . . . . . . Derelict Logs Recovered 9 | . . . . 1 . . . . . 1 3 . . . . . . . 2 . . 2 . Drone Launches 11 | . . . . . . . . . . . . . 2 4 . . 5 . . . . . . Drone Recoveries 10 | . . . . . . . . . . . . . 2 4 . . 4 . . . . . . Exploration | -11 -10 -10 -10 -9 -8 -7 -7 -7 -7 -7 -7 -6 -6 -6 -6 -6 -6 -5 -5 -5 -5 -4 -4 ------------- Run | Scr Mat Min Exi Min Mat Fac Was Fac Low Low Zio Pro Fac Ext Cet Arc Hub Fac Upp Upp War Pro Fac Turns Passed 26395 | 65 1106 165 321 353 2284 984 749 1391 675 674 2352 1435 1932 1472 245 486 2127 2841 403 825 1876 773 861 Spaces Moved 11428 | 36 594 63 198 206 1059 472 472 650 349 336 989 526 992 704 120 129 736 913 239 354 723 301 267 Core 7 | 7 . . . . . . . . . . . . . . . . . . . . . . . Treads 7584 | 29 594 63 198 206 1059 77 . 13 85 319 989 526 149 75 . 94 328 896 239 354 723 301 267 Legs . | . . . . . . . . . . . . . . . . . . . . . . . . Wheels 3837 | . . . . . . 395 472 637 264 17 . . 843 629 120 35 408 17 . . . . . Hover . | . . . . . . . . . . . . . . . . . . . . . . . . Flight . | . . . . . . . . . . . . . . . . . . . . . . . . Fastest Speed 50 | 50 160 160 160 160 155 115 115 145 160 160 160 160 145 160 160 175 160 160 166 166 166 246 245 Average Speed 189 | 146 160 160 160 163 170 166 137 156 179 172 233 160 158 168 170 222 202 238 166 221 244 246 245 Slowest Speed 320 | 160 160 160 160 240 240 320 150 240 240 240 240 160 240 320 175 320 320 246 166 246 246 246 246 Overloaded Moves . | . . . . . . . . . . . . . . . . . . . . . . . . Propulsion Burnouts . | . . . . . . . . . . . . . . . . . . . . . . . . Robots Hopped . | . . . . . . . . . . . . . . . . . . . . . . . . Cave-ins Triggered 1 | . . . . . . . . . . . . 1 . . . . . . . . . . . Exploration Rate (%) 52 | 5 94 24 57 39 72 13 95 19 59 59 80 58 30 69 68 76 64 32 48 48 83 58 9 Regions Visited 23 Branch Regions 15 Pre-discovered Areas 8 | . 2 . 1 1 1 . . . . . . . 2 . . . . . 1 . . . . Known Exits Taken 6 | . . . . . . . . 1 . . . . 1 1 . . 1 1 . 1 . . . Unknown Exits Taken 15 | 1 1 1 1 1 1 . . . 1 1 1 1 . . 1 1 . . 1 . 1 1 . Scrap Searched 17 | . . . . 1 . . . . 7 2 3 . . . . . . . . 2 . 2 . Spaces Dug 97 | . 10 . . . 8 . . . . . . . 8 65 . . . 6 . . . . . Terrain Destroyed 1084 | . 57 38 . 32 90 21 7 2 2 64 . 2 25 81 . 2 360 70 14 71 38 59 49 Melee 3 | . . . . . 3 . . . . . . . . . . . . . . . . . . Projectile 123 | . . . . . . . 7 2 2 2 . 2 . . . 2 60 42 . 1 . 1 2 AOE 958 | . 57 38 . 32 87 21 . . . 62 . . 25 81 . . 300 28 14 70 38 58 47 Terrain Rammed . | . . . . . . . . . . . . . . . . . . . . . . . . Walls Destroyed . | . . . . . . . . . . . . . . . . . . . . . . . . Machines Disabled . | . . . . . . . . . . . . . . . . . . . . . . . . Actions | -11 -10 -10 -10 -9 -8 -7 -7 -7 -7 -7 -7 -6 -6 -6 -6 -6 -6 -5 -5 -5 -5 -4 -4 --------- Run | Scr Mat Min Exi Min Mat Fac Was Fac Low Low Zio Pro Fac Ext Cet Arc Hub Fac Upp Upp War Pro Fac Total 15107 | 45 701 90 202 220 1382 614 532 957 391 412 1027 1076 1294 968 154 303 1144 1402 246 388 830 329 400 Wait 1852 | . 47 2 . 6 83 47 . 222 33 42 10 500 144 107 . 144 185 238 2 4 . 12 24 Move 11405 | 35 593 62 197 205 1058 472 471 649 348 335 988 524 991 703 119 128 735 912 238 353 722 300 267 Hop . | . . . . . . . . . . . . . . . . . . . . . . . . Pick Up 161 | 4 14 . 1 3 49 6 5 6 1 2 3 2 11 4 6 2 6 19 2 5 4 . 6 Fast Attach 124 | 6 4 . . 1 9 12 5 6 . 2 7 . 16 2 4 3 13 22 . 1 4 . 7 Attach 108 | . . 2 . 1 9 2 3 2 1 2 1 6 9 4 3 2 11 20 1 3 2 3 21 Detach 52 | . . . . . 3 1 2 3 . . 1 1 4 3 2 2 6 11 . . 4 1 8 Swap 128 | . 2 2 2 . 19 14 2 8 1 6 2 . 16 7 . 1 28 11 . 1 . . 6 Drop 207 | . 12 1 2 . 40 12 15 11 1 5 10 3 18 6 10 3 14 23 2 6 10 1 2 Fire 852 | . 29 21 . 3 108 48 17 48 6 18 5 39 68 25 10 18 144 140 1 15 18 12 59 Melee 17 | . . . . . 4 . 11 2 . . . . . . . . . . . . . . . Ram 1 | . . . . . . . . . . . . . . 1 . . . . . . . . . Kick . | . . . . . . . . . . . . . . . . . . . . . . . . Crush 6 | . . . . 1 . . . . . . . . 1 . . . 2 2 . . . . . Escape Stasis 45 | . . . . . . . . . . . . 1 16 24 . . . 4 . . . . . Rewire 149 | . . . . . . . 1 . . . . . . 82 . . . . . . 66 . . Trap . | . . . . . . . . . . . . . . . . . . . . . . . . Miscellaneous . | . . . . . . . . . . . . . . . . . . . . . . . . Route ------- -11/Scrapyard -10/Materials (discovered 4 exits: [*Mat x3] / [*Min]) -10/Mines -10/Exiles -9/Mines -8/Materials -7/Factory -7/Waste -7/Factory (discovered 2 exits: *Low x2) -7/Lower Caves -7/Lower Caves -7/Zion -6/Proximity Caves -6/Factory (discovered 5 exits: Fac / *Low x2 / *Ext x2) -6/Extension (discovered 3 exits: *Fac x2 / *Cet) -6/Cetus -6/Archives (discovered 3 exits: *Fac / *Hub x2) -6/Hub_04(d) (discovered 3 exits: *Fac x3) -5/Factory (discovered 2 exits: *Upp x2) -5/Upper Caves -5/Upper Caves (discovered 2 exits: *Fac / *War) -5/Warlord -4/Proximity Caves -4/Factory History --------- Turn | Location | Event 16 | -11/Scrapyard | Discovered new exit (range 16) 66 | -11/Scrapyard | Entered Materials 314 | -10/Materials | Build established: Mutant 537 | -10/Materials | Discovered new exit (range 15) 655 | -10/Materials | Discovered new exit (range 14) 704 | -10/Materials | Discovered new exit (range 14) 760 | -10/Materials | Central database locked down 930 | -10/Materials | Discovered new exit (range 3) 1172 | -10/Materials | Entered Mines 1172 | -10/Mines | Accompanied by 1 ally 1326 | -10/Mines | Deemed a non-threat by the Exiles lab entrance 1327 | -10/Mines | Discovered new exit (range 5) 1337 | -10/Mines | Entered Exiles 1337 | -10/Exiles | Accompanied by 1 ally 1377 | -10/Exiles | Met 8R-AWN 1403 | -10/Exiles | Met EX-HEX 1465 | -10/Exiles | Met EX-DEC 1568 | -10/Exiles | Learned location of Zion (-7) 1643 | -10/Exiles | Discovered new exit (range 11) 1658 | -10/Exiles | Entered Mines 1658 | -9/Mines | Accompanied by 1 ally 1738 | -9/Mines | Assembled infested the area 1751 | -9/Mines | Found a damaged Exp. Sensor Array with a note attached 1754 | -9/Mines | Found Prototype Device 2005 | -9/Mines | Discovered new exit (range 3) 2011 | -9/Mines | Entered Materials 2011 | -8/Materials | Evolved 4 slots: Propulsion x2, Utility x2 2553 | -8/Materials | Central database locked down 2634 | -8/Materials | Build established: Scavenger-Mutant 3139 | -8/Materials | Build established: Mutant 3608 | -8/Materials | Identified Exp. Sensor Array 3985 | -8/Materials | Discovered new exit (range 5) 4295 | -8/Materials | Entered Factory 4295 | -7/Factory | Evolved 2 slots: Utility x1, Weapon x1 4862 | -7/Factory | Fabricated KE Penetrator (x2) 5044 | -7/Factory | Build established: Scavenger-Gunner 5279 | -7/Factory | Sucked down chute 5279 | -7/Factory | Entered Waste 5279 | -7/Waste | The area was eerily silent 5577 | -7/Waste | Discovered new exit (range 10) 5592 | -7/Waste | Build established: Scavenger-Mutant 5964 | -7/Waste | Found Damper Plating 6028 | -7/Waste | Entered Factory 7319 | -7/Factory | Discovered new exit (range 6) 7328 | -7/Factory | Identified exit to Lower Caves 7419 | -7/Factory | Entered Lower Caves 7464 | -7/Lower Caves | Build established: Gunner 8084 | -7/Lower Caves | Discovered new exit (range 8) 8094 | -7/Lower Caves | Entered another Lower Caves area 8268 | -7/Lower Caves | Learned Factory emergency access door positions 8694 | -7/Lower Caves | Acquired the password to a Derelict Tinkerer's latest research 8710 | -7/Lower Caves | Found Prototype Special Weapon 8749 | -7/Lower Caves | Discovered new exit (range 10) 8768 | -7/Lower Caves | Entered Zion 8910 | -7/Zion | Found Prototype Launcher 8910 | -7/Zion | Identified Gui. Missile Launcher 8999 | -7/Zion | Build established: Mutant 9136 | -7/Zion | Discovered new exit (range 16) 10038 | -7/Zion | Given the Hacking Drone Bay 10043 | -7/Zion | Found Prototype Device 10044 | -7/Zion | Identified Hacking Drone Bay 11116 | -7/Zion | Build established: Gunner 11120 | -7/Zion | Entered Proximity Caves 11299 | -6/Proximity Caves | Spotted B-75 Beast 11414 | -6/Proximity Caves | Identified Molecular Deconstructor 11701 | -6/Proximity Caves | Build established: Mutant 12022 | -6/Proximity Caves | Crushed by falling debris 12161 | -6/Proximity Caves | Destroyed B-75 Beast 12453 | -6/Proximity Caves | Build established: Gunner 12538 | -6/Proximity Caves | Discovered new exit (range 14) 12555 | -6/Proximity Caves | Entered Factory 12555 | -6/Factory | Evolved 2 slots: Power x1, Utility x1 12556 | -6/Factory | Identified exit to Lower Caves 12793 | -6/Factory | Spotted B-75 Beast 13027 | -6/Factory | Build established: Tank 13383 | -6/Factory | Cargo convoy interrupted 13510 | -6/Factory | Allied Derelicts emerged from ambush trap array 13690 | -6/Factory | Build established: Mutant 13722 | -6/Factory | Destroyed B-75 Beast 13965 | -6/Factory | Identified exit to Extension 14223 | -6/Factory | Build established: Skirmisher 14276 | -6/Factory | Discovered new exit (range 19) 14458 | -6/Factory | Lost 3 parts (3u) 14487 | -6/Factory | Entered Extension 14606 | -6/Extension | Rescued a captive Derelict 14607 | -6/Extension | Rescued a captive Derelict 14742 | -6/Extension | Build established: Tank 14785 | -6/Extension | Identified exit to Cetus 14800 | -6/Extension | Rescued a captive Derelict 14801 | -6/Extension | Rescued a captive Derelict 14919 | -6/Extension | Identified exit to Factory 14998 | -6/Extension | Rescued a captive Derelict 15336 | -6/Extension | Build established: Mutant 15418 | -6/Extension | Rescued a captive Derelict 15418 | -6/Extension | Rescued a captive Derelict 15777 | -6/Extension | Rescued A7 15943 | -6/Extension | Disrupted transfer network 15959 | -6/Extension | Entered Cetus 15959 | -6/Cetus | Accompanied by 5 allies (A7) 15964 | -6/Cetus | Acquired a Cetus Manufacturing Module code from A7 15969 | -6/Cetus | Spotted Cetus Guard 15969 | -6/Cetus | Spotted Cetus Guard 15974 | -6/Cetus | Allies destroyed Cetus Guard 15974 | -6/Cetus | Spotted Cetus Guard 15986 | -6/Cetus | Allies destroyed Cetus Guard 15986 | -6/Cetus | Allies destroyed Cetus Guard 16033 | -6/Cetus | Cetus Manufacturing Module disabled 16118 | -6/Cetus | Failed to start Cetus Manufacturing Module 16149 | -6/Cetus | Escorted A7 to Cetus Mainframe 16165 | -6/Cetus | Discovered new exit (range 21) 16204 | -6/Cetus | Entered Archives 16204 | -6/Archives | Accompanied by 4 allies (A7) 16209 | -6/Archives | Received a hacking code to weaken MAIN.C 16321 | -6/Archives | Discovered exit to Factory (range 14) 16573 | -6/Archives | Discovered new exit (range 15) 16610 | -6/Archives | Build established: Scavenger-Tank 16654 | -6/Archives | Discovered new exit (range 15) 16690 | -6/Archives | Entered Hub_04(d) 16757 | -6/Hub_04(d) | Discovered exit to Factory (range 15) 17166 | -6/Hub_04(d) | Network Hub disabled 17409 | -6/Hub_04(d) | Discovered exit to Factory (range 16) 17576 | -6/Hub_04(d) | Spotted Lightning 17577 | -6/Hub_04(d) | Spotted Lightning 17578 | -6/Hub_04(d) | Spotted Lightning 17594 | -6/Hub_04(d) | Garrison activated, responded to threat 17594 | -6/Hub_04(d) | Destroyed Lightning 17639 | -6/Hub_04(d) | Destroyed Lightning 17650 | -6/Hub_04(d) | Destroyed Lightning 17677 | -6/Hub_04(d) | Found Prototype Device 17677 | -6/Hub_04(d) | Identified Exp. EM Disruption Field 17689 | -6/Hub_04(d) | Found Prototype Device 17689 | -6/Hub_04(d) | Identified Exp. Phase Shifter 17729 | -6/Hub_04(d) | Found Prototype Energy Cannon 17735 | -6/Hub_04(d) | Found Exp. Phase Shifter 17740 | -6/Hub_04(d) | First assault squad dispatched 17745 | -6/Hub_04(d) | Found Prototype Energy Cannon 17875 | -6/Hub_04(d) | Network Hub disabled 18069 | -6/Hub_04(d) | Spotted Lightning 18073 | -6/Hub_04(d) | Spotted Lightning 18077 | -6/Hub_04(d) | Destroyed Lightning 18077 | -6/Hub_04(d) | Spotted Lightning 18080 | -6/Hub_04(d) | Destroyed Lightning 18104 | -6/Hub_04(d) | Destroyed Lightning 18134 | -6/Hub_04(d) | Found Prototype Processor 18134 | -6/Hub_04(d) | Identified Exp. Targeting Computer 18345 | -6/Hub_04(d) | Found Exp. EM Disruption Field 18544 | -6/Hub_04(d) | Network Hub disabled 18659 | -6/Hub_04(d) | Discovered exit to Factory (range 15) 18817 | -6/Hub_04(d) | Entered Factory 18817 | -5/Factory | Evolved 2 slots: Utility x2 18818 | -5/Factory | Identified exit to Upper Caves 19109 | -5/Factory | Build established: Scavenger-Gunner 19117 | -5/Factory | First assault squad dispatched 19295 | -5/Factory | Lost 3 parts (3u) 19338 | -5/Factory | Lost 3 parts (1p1n1w) 19467 | -5/Factory | Identified EMDS (x2) 20196 | -5/Factory | Garrison activated, responded to threat 20884 | -5/Factory | Destroyed 7 combat bots 21544 | -5/Factory | Found Prototype Launcher 21544 | -5/Factory | Identified Mni. Smartbomb Launcher 21575 | -5/Factory | Discovered exit to Upper Caves (range 7) 21658 | -5/Factory | Entered Upper Caves 21748 | -5/Upper Caves | Learned location of Armory (-3) 22041 | -5/Upper Caves | Discovered new exit (range 11) 22061 | -5/Upper Caves | Entered another Upper Caves area 22062 | -5/Upper Caves | Encountered a Warlord checkpoint 22062 | -5/Upper Caves | Identified exit to Warlord 22121 | -5/Upper Caves | Build established: Scavenger-Mutant 22251 | -5/Upper Caves | Discovered new exit (range 15) 22886 | -5/Upper Caves | Entered Warlord 24186 | -5/Warlord | Warlord's base attacked by MAIN.C 24295 | -5/Warlord | Met Warlord 24332 | -5/Warlord | Found Prototype Device 24332 | -5/Warlord | Identified System Purifier 24342 | -5/Warlord | Found Prototype Reactor 24342 | -5/Warlord | Identified Vortex Chain Reactor 24349 | -5/Warlord | Found Exp. Targeting Computer 24536 | -5/Warlord | Warlord forces counterattacked 24610 | -5/Warlord | Spotted Executioner 24620 | -5/Warlord | Destroyed Striker 24620 | -5/Warlord | Destroyed Executioner 24687 | -5/Warlord | Spotted Executioner 24716 | -5/Warlord | Destroyed 12 combat bots 24737 | -5/Warlord | Discovered new exit (range 9) 24762 | -5/Warlord | Entered Proximity Caves 24762 | -4/Proximity Caves | Accompanied by 3 allies 24892 | -4/Proximity Caves | Attracted the attention of an 0b10 checkpoint 25187 | -4/Proximity Caves | Learned location of 1 exit from Research 25479 | -4/Proximity Caves | Discovered new exit (range 15) 25528 | -4/Proximity Caves | Learned Research terminal intel 25535 | -4/Proximity Caves | Entered Factory 25535 | -4/Factory | Accompanied by 1 ally 25535 | -4/Factory | Evolved 2 slots: Utility x2 26122 | -4/Factory | Build established: Scavenger-Gunner 26264 | -4/Factory | Lost 3 parts (1n1u1w) 26265 | -4/Factory | Destroyed 8 combat bots 26348 | -4/Factory | Spotted Executioner 26349 | -4/Factory | Cargo convoy interrupted 26352 | -4/Factory | Spotted Executioner 26364 | -4/Factory | Destroyed Executioner 26386 | -4/Factory | Destroyed Executioner 26396 | -4/Factory | Self-destructed Last Messages --------------- 26391_ U-05 Engineer builds a Door. 26391_ U-05 Engineer lays Concrete. 26392_ Penetrated by Slug. 26392_ Hyp. Coil Gun destroyed. 26392_ Penetrated by Slug. 26392_ U-05 Engineer lays Concrete. 26393_ Slug penetrates Earth. 26393_ Slug penetrates Wall. 26393_ Slug penetrates Door. 26393_ Penetrated by Slug. 26393_ Mak. Ablative Armor destroyed. 26393_ Penetrated by Slug. 26393_ Slug penetrates Wall. 26393_ Exp. Targeting Computer destroyed. 26393_ U-05 Engineer lays Concrete. 26394_ The unstable cave ceiling collapses. 26395_ U-05 Engineer builds a Door. 26395_ U-05 Engineer lays Concrete. 26396_ Penetrated by Slug. 26396_ U-05 Engineer lays Concrete. Map ----- +----------------------------------------------------+ | ?????????????????????????????????????????????????? | | ?????????????????????????????????????????????????? | | ?????????????????????????????????????????????????? | | ?????????????????????????????????????????????????? | | ????????????????????? ???????????????????????? | | ????????????????????? ??????????????????????? | | ????????????????????# ??????????????????????? | | ????????????????????# ??????????????????????? | | ????????????????????# ??????????????????????? | | ??????????? ??????# ??????????????????????? | | ??????????" "???# #??#####???????????????? | | ??????????" ! Y??# #?? #???????????????? | | ??????????" !""??# #?? #???????????????? | | ??????????" ! ?# +? #???????????????? | | ????????? " ] ?+ #? #???????????????? | | ????????? " # #? #???????????????? | | ??????????? # #?! #???????????????? | | ???????????? #? #???????????????? | | ?????????????? ^^# #??? ??????????? | | ??????????????? # #?? #????????? | | ????????????????? # #? #??? ????? | | ??????????????????# [ # ## h ?????? | | ??????????????##### = # # h #????????? | | ????????????### [ !#! # ??? | | ????????????# ; ; !]%#; # ??? | | ?###;;;;;;;;;;;! ; !@==[ #????????? | | ?# # # ! *!=[!= #????????? | | ?# """" # # * |!!*= h #????????? | | ?# """" # + =%!! #????????? | | ?# """" # #u * #????????? | | ?#" """" # # # # #????????? | | ?#" / # ###????????????? | | ?#" """" # # # ????? | | ?#T """" # ! # #? ?????? | | ?#" """" # # [ #?? ??????? | | ?#" """" ##"#### ! = #??? ???????? | | ?#" ###? u !*! #???? ?????? | | ?# #??#### = #?????? ?????? | | ########+############ #??????? ?????? | | =[#???????????????? | | * ; ??????? | | * [[# ?? | | = #############???? | | #???????????????? | | ########+#############+##### #???????????????? | | ??# #???? ??? #???????????????? | | ??# #?? ? #???????????????? | | ??# """" """" #?# # +???????????????? | | ??# """" """" #?# """"" # #???????????????? | | ??# """" """" #?# """"" # #???????????????? | +----------------------------------------------------+ Best States ------------- Heat Dissipation 66 Energy Generation 57 Energy Capacity 700 Matter Stores 300 Matter Capacity 300 Sight Range 22 Terrain Scan Range 20 Terrain Scan Density 110 Jamming Range 12 Power Amplification 30 EM Shielding 2 Corruption Block 8 Armor Coverage 3200 Resistance: KI 20 Resistance: TH 10 Resistance: EM 90 Propulsion Shielding 66 Weapon Cycling 30 Phase Shifting 20 Evasion (%) 60 Targeting Accuracy 20 Target Analysis 9 Armor Integrity Analysis 30 Recoil Reduction 4 Matter Filtering 30 Kinecelleration 40 Offensive Hacking 10 Authchip Count 1 Item Schematics ----------------- Huge Storage Unit | -7/Factory | Hacked Arm. Leg | -7/Zion | Archive Mak. Armor Plating | -7/Zion | Archive Mak. Leg | -7/Zion | Archive Imp. Core Shielding | -7/Zion | Archive Imp. Corruption Screen | -7/Zion | Archive Imp. Carbon-fiber Leg | -7/Zion | Archive Adv. Melee Analysis Suite | -7/Zion | Archive Remote Datajack | -7/Zion | Archive Phase Cannon | -7/Zion | Archive Imp. Field Recycling Unit | -7/Zion | Archive Hvy. Flak Cannon | -7/Zion | Archive Enh. Optical Array | -7/Zion | Archive Mak. Spear | -7/Zion | Archive Wave Gun | -7/Zion | Archive Hvy. Mass Driver | -7/Zion | Archive Riot Gun | -7/Zion | Free Battle Rifle | -7/Zion | Free Tactical Coordination Suite | -7/Zion | Free System Restoration Module | -6/Factory | Scanalyzed Robot Schematics ------------------ B-48 Gladiator | -7/Zion | Archive H-55 Commando | -7/Zion | Archive A-02 Transporter | -7/Zion | Archive Fabricated ------------ KE Penetrator | x2 | -7/Factory | Preloaded Alien Tech Used ----------------- None Achievements -------------- None Challenges ------------ None Game ------ Seed DataSpreadDetonator Manual? 0 Play Time 02:35:21 Cumulative 164.6 hours Start 2022.02.19 @ 04:07:49 End 2022.02.19 @ 22:09:21 Sessions 7 Manual Loads 0 Difficulty Rogue Special Mode None Game No. 270 Rogue 253 Adventurer 4 Explorer 13 Win Type - Total 8 Types 6/0/0/2/0/0/0/0/0 Lore% 65 Gallery% 81 Achievement% 68 Wizard Run 0 Options --------- ASCII 0 Keyboard 1 Movement Numpad Keybinds 0 Fullscreen 1 Font 18/SmallcapsGlow Map View 76x50 Tactical HUD 1 Map Filters NONE Filters NONE Steam 1 RUN: 93e6e02d-83b6-4dba-a6b3-6fc56134f57e